[Event "*** Titled Tuesday Blitz"]
[Site "Chess.com"]
[Date "2020.12.01"]
[Round "7"]
[White "skoularikii"]
[Black "Colombiano07"]
[Result "0-1"]
[WhiteElo "2437"]
[BlackElo "2303"]
[TimeControl "180+1"]
[EndTime "11:12:38 PST"]
[Termination "Colombiano07 won by resignation"]

1. e4 {[%clk 0:03:00.9]} 1... c5 {[%clk 0:02:52.5]} 2. Nf3 {[%clk 0:03:01.2]}
2... Nc6 {[%clk 0:02:51.8]} 3. Bb5 {[%clk 0:03:00.9]} 3... e6 {[%clk 0:02:51.7]}
4. O-O {[%clk 0:03:00.5]} 4... Nge7 {[%clk 0:02:52.3]} 5. c3 {[%clk 0:03:00.8]}
5... a6 {[%clk 0:02:52.2]} 6. Ba4 {[%clk 0:02:58.2]} 6... b5 {[%clk 0:02:52]} 7.
Bc2 {[%clk 0:02:58.8]} 7... d5 {[%clk 0:02:51.8]} 8. d4 {[%clk 0:02:56.9]} 8...
Bb7 {[%clk 0:02:48.5]} 9. Bg5 {[%clk 0:02:50]} 9... cxd4 {[%clk 0:02:46]} 10.
cxd4 {[%clk 0:02:47.3]} 10... Nb4 {[%clk 0:02:46.4]} 11. Nc3 {[%clk 0:02:39.8]}
11... Nxc2 {[%clk 0:02:45.9]} 12. Qxc2 {[%clk 0:02:40.7]} 12... b4 {[%clk
0:02:44.5]} 13. exd5 {[%clk 0:02:10.5]} 13... bxc3 {[%clk 0:02:43.6]} 14. Ne5
{[%clk 0:01:57.6]} 14... Qxd5 {[%clk 0:02:40]} 15. Qa4+ {[%clk 0:01:46.9]} 15...
Bc6 {[%clk 0:02:36.9]} 16. Nxc6 {[%clk 0:01:44.8]} 16... Qxc6 {[%clk 0:02:37.8]}
17. Qa5 {[%clk 0:01:37.8]} 17... cxb2 {[%clk 0:02:34.7]} 18. Rab1 {[%clk
0:01:38.2]} 18... Qb5 {[%clk 0:02:29.9]} 19. Qd2 {[%clk 0:01:37.2]} 19... Rb8
{[%clk 0:02:21]} 20. Bf4 {[%clk 0:01:36.9]} 20... Rb7 {[%clk 0:02:18.4]} 21. Qc3
{[%clk 0:01:34.4]} 21... Qc6 {[%clk 0:02:09.2]} 22. Qd2 {[%clk 0:01:11.8]} 22...
Nd5 {[%clk 0:02:06.6]} 23. Rxb2 {[%clk 0:01:12.4]} 23... Nxf4 {[%clk 0:01:56.9]}
0-1

[Event "*** Titled Tuesday Blitz"]
[Site "Chess.com"]
[Date "2020.12.01"]
[Round "7"]
[White "SlavenPastar"]
[Black "leoduarte"]
[Result "1-0"]
[WhiteElo "2516"]
[BlackElo "2334"]
[TimeControl "180+1"]
[EndTime "11:12:50 PST"]
[Termination "SlavenPastar won by resignation"]

1. b3 {[%clk 0:03:00.4]} 1... d5 {[%clk 0:02:55.7]} 2. Bb2 {[%clk 0:02:56.3]}
2... Bf5 {[%clk 0:02:55.1]} 3. Nf3 {[%clk 0:02:55.1]} 3... e6 {[%clk 0:02:53]}
4. g3 {[%clk 0:02:54.3]} 4... Nf6 {[%clk 0:02:51.5]} 5. Nh4 {[%clk 0:02:52.4]}
5... Bg4 {[%clk 0:02:48.6]} 6. h3 {[%clk 0:02:50.4]} 6... Bh5 {[%clk 0:02:48.6]}
7. g4 {[%clk 0:02:47.2]} 7... Bg6 {[%clk 0:02:33.6]} 8. Nxg6 {[%clk 0:02:33.7]}
8... hxg6 {[%clk 0:02:34.5]} 9. Bg2 {[%clk 0:02:34.2]} 9... Bd6 {[%clk
0:02:20.9]} 10. c4 {[%clk 0:02:33.1]} 10... c6 {[%clk 0:02:20.4]} 11. d3 {[%clk
0:02:30.9]} 11... Nbd7 {[%clk 0:02:17.5]} 12. Nd2 {[%clk 0:02:29.7]} 12... Qc7
{[%clk 0:02:11.3]} 13. a3 {[%clk 0:02:26.7]} 13... O-O-O {[%clk 0:02:05]} 14. b4
{[%clk 0:02:24.6]} 14... Kb8 {[%clk 0:02:04.1]} 15. Qb3 {[%clk 0:02:18.5]} 15...
e5 {[%clk 0:01:39.2]} 16. cxd5 {[%clk 0:02:08.1]} 16... cxd5 {[%clk 0:01:32.9]}
17. Rc1 {[%clk 0:01:59]} 17... Qb6 {[%clk 0:01:31.4]} 18. Bxd5 {[%clk
0:01:52.3]} 18... Nxd5 {[%clk 0:01:20.6]} 19. Qxd5 {[%clk 0:01:53.2]} 19... f5
{[%clk 0:01:16.4]} 20. Nc4 {[%clk 0:01:51.1]} 20... Nf6 {[%clk 0:01:13.1]} 21.
Nxb6 {[%clk 0:01:48.3]} 1-0

[Event "*** Titled Tuesday Blitz"]
[Site "Chess.com"]
[Date "2020.12.01"]
[Round "7"]
[White "Fortitudine"]
[Black "Eliwood44"]
[Result "0-1"]
[WhiteElo "2353"]
[BlackElo "2481"]
[TimeControl "180+1"]
[EndTime "11:13:02 PST"]
[Termination "Eliwood44 won by resignation"]

1. c4 {[%clk 0:03:00.9]} 1... e6 {[%clk 0:02:56.1]} 2. Nf3 {[%clk 0:02:59.8]}
2... Nf6 {[%clk 0:02:40.4]} 3. b3 {[%clk 0:02:55.1]} 3... d5 {[%clk 0:02:40.2]}
4. Bb2 {[%clk 0:02:54.4]} 4... c5 {[%clk 0:02:39.4]} 5. g3 {[%clk 0:02:51.4]}
5... d4 {[%clk 0:02:38.2]} 6. e3 {[%clk 0:02:50.1]} 6... Nc6 {[%clk 0:02:38.5]}
7. exd4 {[%clk 0:02:50.3]} 7... cxd4 {[%clk 0:02:39.4]} 8. Bg2 {[%clk
0:02:49.7]} 8... e5 {[%clk 0:02:36.2]} 9. O-O {[%clk 0:02:48.8]} 9... Bd6 {[%clk
0:02:36.3]} 10. Re1 {[%clk 0:02:48.1]} 10... O-O {[%clk 0:02:35.9]} 11. d3
{[%clk 0:02:46.7]} 11... h6 {[%clk 0:02:34.1]} 12. Na3 {[%clk 0:02:46]} 12...
Bf5 {[%clk 0:02:31.1]} 13. Nc2 {[%clk 0:02:44.3]} 13... Re8 {[%clk 0:02:29.1]}
14. a3 {[%clk 0:02:42.4]} 14... a5 {[%clk 0:02:29]} 15. Qd2 {[%clk 0:02:23.1]}
15... Qb6 {[%clk 0:02:22]} 16. Rab1 {[%clk 0:02:02.4]} 16... Qxb3 {[%clk
0:02:15.7]} 17. Bxd4 {[%clk 0:01:42.4]} 17... Qxd3 {[%clk 0:02:14.7]} 0-1

[Event "*** Titled Tuesday Blitz"]
[Site "Chess.com"]
[Date "2020.12.01"]
[Round "7"]
[White "OlifantCZ"]
[Black "Nadeev_Sergey"]
[Result "1-0"]
[WhiteElo "2253"]
[BlackElo "2438"]
[TimeControl "180+1"]
[EndTime "11:13:17 PST"]
[Termination "OlifantCZ won by resignation"]

1. c4 {[%clk 0:03:00.9]} 1... e5 {[%clk 0:02:59.9]} 2. g3 {[%clk 0:02:59.5]}
2... Nf6 {[%clk 0:03:00.3]} 3. Bg2 {[%clk 0:02:59.2]} 3... d5 {[%clk 0:02:59.3]}
4. cxd5 {[%clk 0:02:58.7]} 4... Nxd5 {[%clk 0:03:00.2]} 5. Nc3 {[%clk
0:02:59.1]} 5... Nb6 {[%clk 0:02:59.6]} 6. Nf3 {[%clk 0:02:58.3]} 6... Nc6
{[%clk 0:02:59.7]} 7. O-O {[%clk 0:02:57.6]} 7... Be7 {[%clk 0:03:00.2]} 8. b3
{[%clk 0:02:58]} 8... O-O {[%clk 0:02:59.8]} 9. Bb2 {[%clk 0:02:58.7]} 9... f5
{[%clk 0:02:56.2]} 10. d3 {[%clk 0:02:56.9]} 10... Be6 {[%clk 0:02:41.4]} 11.
Rc1 {[%clk 0:02:44.9]} 11... Qd7 {[%clk 0:02:31]} 12. e4 {[%clk 0:02:27.1]}
12... f4 {[%clk 0:02:27.6]} 13. Ne2 {[%clk 0:02:25.6]} 13... fxg3 {[%clk
0:02:11.4]} 14. hxg3 {[%clk 0:02:23.6]} 14... Bf6 {[%clk 0:01:40.8]} 15. Rxc6
{[%clk 0:02:08.5]} 15... Qxc6 {[%clk 0:01:35.2]} 16. Nxe5 {[%clk 0:02:08.7]}
16... Qe8 {[%clk 0:01:31.4]} 17. Nf4 {[%clk 0:01:52.7]} 17... Bf7 {[%clk
0:01:17]} 18. d4 {[%clk 0:01:49.8]} 18... Bxe5 {[%clk 0:01:16.1]} 19. dxe5
{[%clk 0:01:49.6]} 19... Rd8 {[%clk 0:00:59]} 20. Qc2 {[%clk 0:01:48.7]} 20...
c6 {[%clk 0:00:59.2]} 21. Bh3 {[%clk 0:01:48.1]} 21... g5 {[%clk 0:00:55.8]} 22.
e6 {[%clk 0:01:42.9]} 1-0

[Event "*** Titled Tuesday Blitz"]
[Site "Chess.com"]
[Date "2020.12.01"]
[Round "7"]
[White "TigrVShlyape"]
[Black "Azerichess"]
[Result "0-1"]
[WhiteElo "2851"]
[BlackElo "2969"]
[TimeControl "180+1"]
[EndTime "11:13:34 PST"]
[Termination "Azerichess won by resignation"]

1. d4 {[%clk 0:03:00.9]} 1... d5 {[%clk 0:02:57.9]} 2. Nf3 {[%clk 0:02:58]} 2...
c5 {[%clk 0:02:54]} 3. c4 {[%clk 0:02:56.8]} 3... cxd4 {[%clk 0:02:54.3]} 4.
cxd5 {[%clk 0:02:52.9]} 4... Qxd5 {[%clk 0:02:55.2]} 5. Nc3 {[%clk 0:02:52.3]}
5... Qa5 {[%clk 0:02:55]} 6. Nxd4 {[%clk 0:02:49.6]} 6... Nf6 {[%clk 0:02:55.5]}
7. g3 {[%clk 0:02:43.9]} 7... e5 {[%clk 0:02:55.2]} 8. Nb3 {[%clk 0:02:43]} 8...
Qc7 {[%clk 0:02:55.8]} 9. Bg2 {[%clk 0:02:42.7]} 9... Bb4 {[%clk 0:02:56.4]} 10.
Bd2 {[%clk 0:02:41.4]} 10... O-O {[%clk 0:02:56.4]} 11. O-O {[%clk 0:02:38.9]}
11... Rd8 {[%clk 0:02:57]} 12. Rc1 {[%clk 0:02:29.6]} 12... Nc6 {[%clk
0:02:56.7]} 13. Qc2 {[%clk 0:02:22.9]} 13... Be6 {[%clk 0:02:50.6]} 14. Bg5
{[%clk 0:02:00.2]} 14... Rac8 {[%clk 0:02:35.6]} 15. Ne4 {[%clk 0:01:53.7]}
15... Be7 {[%clk 0:02:31.7]} 16. Bxf6 {[%clk 0:01:50]} 16... gxf6 {[%clk
0:02:32.6]} 17. Nec5 {[%clk 0:01:41.9]} 17... Bxc5 {[%clk 0:02:08.8]} 18. Nxc5
{[%clk 0:01:23]} 18... Nd4 {[%clk 0:02:03.7]} 19. Nxe6 {[%clk 0:01:10.9]} 19...
Qxc2 {[%clk 0:02:00]} 20. Rxc2 {[%clk 0:01:09.2]} 20... fxe6 {[%clk 0:02:00.5]}
21. Rxc8 {[%clk 0:01:07]} 21... Nxe2+ {[%clk 0:02:00.6]} 22. Kh1 {[%clk
0:01:06.9]} 22... Rxc8 {[%clk 0:02:01.4]} 23. Bxb7 {[%clk 0:01:00.9]} 23... Rb8
{[%clk 0:02:01.4]} 24. Ba6 {[%clk 0:01:00.6]} 24... Rxb2 {[%clk 0:02:01]} 25.
Bc4 {[%clk 0:01:00.5]} 25... Nd4 {[%clk 0:02:00.2]} 26. f4 {[%clk 0:00:52.2]}
26... e4 {[%clk 0:01:54]} 27. f5 {[%clk 0:00:51.7]} 27... Nf3 {[%clk 0:01:41.9]}
0-1

[Event "*** Titled Tuesday Blitz"]
[Site "Chess.com"]
[Date "2020.12.01"]
[Round "7"]
[White "queen_iryna"]
[Black "plumalka"]
[Result "0-1"]
[WhiteElo "2312"]
[BlackElo "2483"]
[TimeControl "180+1"]
[EndTime "11:13:41 PST"]
[Termination "plumalka won by resignation"]

1. e4 {[%clk 0:03:00.9]} 1... c5 {[%clk 0:02:58.9]} 2. Nf3 {[%clk 0:03:00.1]}
2... d6 {[%clk 0:02:59.5]} 3. Bb5+ {[%clk 0:02:59.2]} 3... Bd7 {[%clk
0:02:59.3]} 4. Bxd7+ {[%clk 0:02:58.8]} 4... Qxd7 {[%clk 0:03:00.2]} 5. c4
{[%clk 0:02:57.3]} 5... e5 {[%clk 0:02:59.9]} 6. O-O {[%clk 0:02:46.8]} 6... g6
{[%clk 0:03:00.2]} 7. Nc3 {[%clk 0:02:46.4]} 7... Bg7 {[%clk 0:02:58.9]} 8. d3
{[%clk 0:02:45.8]} 8... Ne7 {[%clk 0:02:59.4]} 9. h3 {[%clk 0:02:43.1]} 9... O-O
{[%clk 0:02:59.4]} 10. Nh2 {[%clk 0:02:43.2]} 10... f5 {[%clk 0:02:57.5]} 11. f4
{[%clk 0:02:36.2]} 11... Nbc6 {[%clk 0:02:56.7]} 12. Nf3 {[%clk 0:02:33.7]}
12... exf4 {[%clk 0:02:53.5]} 13. exf5 {[%clk 0:02:23.9]} 13... Nxf5 {[%clk
0:02:39.3]} 14. Nd5 {[%clk 0:02:23.6]} 14... Ng3 {[%clk 0:02:19.5]} 15. Re1
{[%clk 0:02:20]} 15... Nh5 {[%clk 0:02:18.9]} 16. Bd2 {[%clk 0:02:01.2]} 16...
Bxb2 {[%clk 0:02:09.9]} 17. Rb1 {[%clk 0:02:01.1]} 17... Bg7 {[%clk 0:02:09.5]}
18. Qc1 {[%clk 0:02:00.5]} 18... Rae8 {[%clk 0:02:06.3]} 19. Rxe8 {[%clk
0:01:57.1]} 19... Rxe8 {[%clk 0:01:54.8]} 20. Nxf4 {[%clk 0:01:54.7]} 20... Nd4
{[%clk 0:01:51.5]} 21. Nxd4 {[%clk 0:01:41]} 21... Bxd4+ {[%clk 0:01:52.4]} 22.
Kh1 {[%clk 0:01:41.3]} 22... Ng3+ {[%clk 0:01:38.9]} 23. Kh2 {[%clk 0:01:40.6]}
23... Ne2 {[%clk 0:01:24.9]} 24. Nxe2 {[%clk 0:01:40.1]} 24... Rxe2 {[%clk
0:01:25.8]} 25. Bf4 {[%clk 0:01:37.2]} 25... Qc6 {[%clk 0:01:11.3]} 26. Qf1
{[%clk 0:01:28.3]} 26... Rf2 {[%clk 0:01:10.8]} 27. Qh1 {[%clk 0:01:28]} 27...
Rxf4 {[%clk 0:01:09.9]} 28. Re1 {[%clk 0:01:19.3]} 28... Be5 {[%clk 0:01:08.4]}
0-1

[Event "*** Titled Tuesday Blitz"]
[Site "Chess.com"]
[Date "2020.12.01"]
[Round "7"]
[White "SanchezKelvin"]
[Black "KventinKarantino"]
[Result "1-0"]
[WhiteElo "2473"]
[BlackElo "2298"]
[TimeControl "180+1"]
[EndTime "11:13:42 PST"]
[Termination "SanchezKelvin won by resignation"]

1. e4 {[%clk 0:03:00.9]} 1... c5 {[%clk 0:02:45]} 2. Nf3 {[%clk 0:03:00.5]} 2...
d6 {[%clk 0:02:44.6]} 3. d4 {[%clk 0:02:56.9]} 3... cxd4 {[%clk 0:02:45.5]} 4.
Nxd4 {[%clk 0:02:57.7]} 4... Nf6 {[%clk 0:02:45.6]} 5. Nc3 {[%clk 0:02:57.9]}
5... g6 {[%clk 0:02:44.9]} 6. f3 {[%clk 0:02:57.1]} 6... Bg7 {[%clk 0:02:44.7]}
7. Be3 {[%clk 0:02:57]} 7... O-O {[%clk 0:02:44]} 8. Qd2 {[%clk 0:02:57.5]} 8...
Nc6 {[%clk 0:02:44.5]} 9. Bc4 {[%clk 0:02:57.5]} 9... Bd7 {[%clk 0:02:44.1]} 10.
h4 {[%clk 0:02:57.2]} 10... Rc8 {[%clk 0:02:40.8]} 11. Bb3 {[%clk 0:02:57.2]}
11... Na5 {[%clk 0:02:39.3]} 12. h5 {[%clk 0:02:51.1]} 12... Nxb3 {[%clk
0:02:39.2]} 13. axb3 {[%clk 0:02:50.3]} 13... a6 {[%clk 0:02:36.4]} 14. Bh6
{[%clk 0:02:48.1]} 14... Bxh6 {[%clk 0:02:29.4]} 15. Qxh6 {[%clk 0:02:47.2]}
15... e5 {[%clk 0:02:28.6]} 16. Nde2 {[%clk 0:02:44.9]} 16... Be6 {[%clk
0:02:13.7]} 17. O-O-O {[%clk 0:02:42.6]} 17... Qa5 {[%clk 0:02:05.7]} 18. Kb1
{[%clk 0:02:39.7]} 18... Rfd8 {[%clk 0:01:49.5]} 19. Qg5 {[%clk 0:02:33.4]}
19... Ne8 {[%clk 0:01:45.4]} 20. hxg6 {[%clk 0:02:30.6]} 20... fxg6 {[%clk
0:01:45.1]} 21. Qe7 {[%clk 0:02:08.3]} 21... Ng7 {[%clk 0:01:26.5]} 22. Qh4
{[%clk 0:01:52.6]} 22... h5 {[%clk 0:01:16.5]} 23. g4 {[%clk 0:01:43.3]} 23...
hxg4 {[%clk 0:01:13.9]} 24. fxg4 {[%clk 0:01:41.3]} 24... Kf7 {[%clk 0:00:40.8]}
25. Rdf1+ {[%clk 0:01:37.9]} 25... Ke8 {[%clk 0:00:40]} 26. Qh8+ {[%clk
0:01:36.7]} 1-0

[Event "*** Titled Tuesday Blitz"]
[Site "Chess.com"]
[Date "2020.12.01"]
[Round "7"]
[White "Juanovic"]
[Black "TC2304"]
[Result "0-1"]
[WhiteElo "2172"]
[BlackElo "2332"]
[TimeControl "180+1"]
[EndTime "11:14:02 PST"]
[Termination "TC2304 won by resignation"]

1. e4 {[%clk 0:03:00.9]} 1... c5 {[%clk 0:02:59.6]} 2. Nf3 {[%clk 0:03:01]} 2...
d6 {[%clk 0:02:59.9]} 3. d4 {[%clk 0:03:00.8]} 3... cxd4 {[%clk 0:03:00.8]} 4.
Nxd4 {[%clk 0:03:01.3]} 4... Nf6 {[%clk 0:03:01.3]} 5. Nc3 {[%clk 0:03:01.5]}
5... a6 {[%clk 0:03:02]} 6. Bg5 {[%clk 0:03:01.5]} 6... e6 {[%clk 0:03:01.7]} 7.
f4 {[%clk 0:03:01.3]} 7... Nbd7 {[%clk 0:03:02.4]} 8. Qf3 {[%clk 0:03:00.7]}
8... Qc7 {[%clk 0:03:03.1]} 9. O-O-O {[%clk 0:03:00.8]} 9... b5 {[%clk
0:03:03.8]} 10. g4 {[%clk 0:02:59.8]} 10... Bb7 {[%clk 0:03:03.1]} 11. Bxf6
{[%clk 0:02:59.2]} 11... Nxf6 {[%clk 0:03:04]} 12. g5 {[%clk 0:02:59.2]} 12...
b4 {[%clk 0:03:04.6]} 13. gxf6 {[%clk 0:02:58.9]} 13... bxc3 {[%clk 0:03:04.7]}
14. Nb3 {[%clk 0:02:44.5]} 14... cxb2+ {[%clk 0:03:01.5]} 15. Kb1 {[%clk
0:02:44.4]} 15... gxf6 {[%clk 0:02:58.7]} 16. Rg1 {[%clk 0:02:44]} 16... f5
{[%clk 0:02:54.8]} 17. Bd3 {[%clk 0:02:43.7]} 17... Qc3 {[%clk 0:02:33.6]} 18.
Qg2 {[%clk 0:02:37.7]} 18... Rc8 {[%clk 0:02:10.7]} 19. Qe2 {[%clk 0:02:13.7]}
19... fxe4 {[%clk 0:02:07.9]} 20. Bxe4 {[%clk 0:02:13.9]} 20... Bxe4 {[%clk
0:01:48.7]} 21. Qxe4 {[%clk 0:02:11.7]} 21... Qc4 {[%clk 0:01:48]} 22. Qxc4
{[%clk 0:01:29]} 22... Rxc4 {[%clk 0:01:46.8]} 23. Rdf1 {[%clk 0:01:27]} 23...
Bh6 {[%clk 0:01:26]} 24. f5 {[%clk 0:01:23.2]} 24... e5 {[%clk 0:01:20.8]} 25.
f6 {[%clk 0:01:20.1]} 25... Kd7 {[%clk 0:01:18.1]} 26. Kxb2 {[%clk 0:01:18.9]}
26... Ke6 {[%clk 0:01:10.8]} 27. Rg3 {[%clk 0:01:13.3]} 27... Bf4 {[%clk
0:01:07.6]} 28. Rh3 {[%clk 0:01:09.3]} 28... Kxf6 {[%clk 0:01:03.8]} 29. Rh6+
{[%clk 0:01:01.2]} 29... Ke7 {[%clk 0:01:03.9]} 30. Rh4 {[%clk 0:01:00]} 30...
Bc1+ {[%clk 0:01:00.5]} 0-1

[Event "*** Titled Tuesday Blitz"]
[Site "Chess.com"]
[Date "2020.12.01"]
[Round "7"]
[White "Gusarov91"]
[Black "Das_Virus_2020"]
[Result "1/2-1/2"]
[WhiteElo "2632"]
[BlackElo "2451"]
[TimeControl "180+1"]
[EndTime "11:14:11 PST"]
[Termination "Game drawn by repetition"]

1. e4 {[%clk 0:02:56]} 1... e6 {[%clk 0:02:59]} 2. d4 {[%clk 0:02:54.2]} 2... d5
{[%clk 0:02:59]} 3. Nc3 {[%clk 0:02:54.8]} 3... Nf6 {[%clk 0:02:58.5]} 4. Bg5
{[%clk 0:02:54.3]} 4... Be7 {[%clk 0:02:57.9]} 5. Bxf6 {[%clk 0:02:51]} 5...
Bxf6 {[%clk 0:02:57.3]} 6. Nf3 {[%clk 0:02:51.7]} 6... dxe4 {[%clk 0:02:54.6]}
7. Nxe4 {[%clk 0:02:51.1]} 7... Bd7 {[%clk 0:02:55]} 8. Nxf6+ {[%clk 0:02:50]}
8... Qxf6 {[%clk 0:02:52.3]} 9. Ne5 {[%clk 0:02:48.2]} 9... O-O {[%clk
0:02:43.2]} 10. Bd3 {[%clk 0:02:46.9]} 10... Rd8 {[%clk 0:02:42.6]} 11. O-O
{[%clk 0:02:44.6]} 11... Nc6 {[%clk 0:02:36.6]} 12. Nxd7 {[%clk 0:02:35.4]}
12... Rxd7 {[%clk 0:02:37.5]} 13. c3 {[%clk 0:02:35.7]} 13... e5 {[%clk
0:01:55.8]} 14. d5 {[%clk 0:02:30.8]} 14... Ne7 {[%clk 0:01:54.4]} 15. c4 {[%clk
0:02:29.3]} 15... c6 {[%clk 0:01:51.6]} 16. Be4 {[%clk 0:02:29.1]} 16... Rad8
{[%clk 0:01:50]} 17. Qb3 {[%clk 0:02:22.5]} 17... cxd5 {[%clk 0:01:45.8]} 18.
cxd5 {[%clk 0:02:22.2]} 18... Nxd5 {[%clk 0:01:43.5]} 19. Bxd5 {[%clk
0:02:19.8]} 19... Rxd5 {[%clk 0:01:44.4]} 20. Qxb7 {[%clk 0:02:20.1]} 20... Qb6
{[%clk 0:01:39.7]} 21. Qxb6 {[%clk 0:02:13.3]} 21... axb6 {[%clk 0:01:40.6]} 22.
a4 {[%clk 0:02:12.1]} 22... Rd2 {[%clk 0:01:26.1]} 23. Rfb1 {[%clk 0:02:10.6]}
23... Rc2 {[%clk 0:01:19.8]} 24. b4 {[%clk 0:02:00.4]} 24... Rdd2 {[%clk
0:01:13.8]} 25. Rf1 {[%clk 0:01:56.6]} 25... Ra2 {[%clk 0:01:08]} 26. a5 {[%clk
0:01:56.1]} 26... bxa5 {[%clk 0:01:03.5]} 27. bxa5 {[%clk 0:01:55.6]} 27... Rxf2
{[%clk 0:00:49.7]} 28. Rfd1 {[%clk 0:01:27.4]} 28... Rxg2+ {[%clk 0:00:48.3]}
29. Kf1 {[%clk 0:01:27.1]} 29... Rgf2+ {[%clk 0:00:35.8]} 30. Kg1 {[%clk
0:01:26.6]} 30... Rg2+ {[%clk 0:00:33.8]} 31. Kf1 {[%clk 0:01:26.8]} 31... Rgf2+
{[%clk 0:00:33.7]} 32. Kg1 {[%clk 0:01:27]} 32... Rg2+ {[%clk 0:00:33.3]}
1/2-1/2

[Event "*** Titled Tuesday Blitz"]
[Site "Chess.com"]
[Date "2020.12.01"]
[Round "7"]
[White "marciojor"]
[Black "tolimachess"]
[Result "1-0"]
[WhiteElo "2264"]
[BlackElo "2436"]
[TimeControl "180+1"]
[EndTime "11:14:16 PST"]
[Termination "marciojor won by resignation"]

1. e4 {[%clk 0:03:00.9]} 1... c5 {[%clk 0:02:59.4]} 2. Nf3 {[%clk 0:03:00.9]}
2... e6 {[%clk 0:02:59.1]} 3. d4 {[%clk 0:03:01.1]} 3... cxd4 {[%clk 0:03:00]}
4. Nxd4 {[%clk 0:03:01.4]} 4... a6 {[%clk 0:03:00.5]} 5. Nc3 {[%clk 0:03:01.7]}
5... Qc7 {[%clk 0:03:00.1]} 6. Be2 {[%clk 0:03:01.4]} 6... Nf6 {[%clk
0:02:58.6]} 7. O-O {[%clk 0:03:01.3]} 7... b5 {[%clk 0:02:58.5]} 8. f4 {[%clk
0:02:49.2]} 8... b4 {[%clk 0:02:46.3]} 9. e5 {[%clk 0:02:49.2]} 9... bxc3 {[%clk
0:02:45.2]} 10. exf6 {[%clk 0:02:49.4]} 10... gxf6 {[%clk 0:02:29.3]} 11. Bf3
{[%clk 0:02:36.3]} 11... Bb7 {[%clk 0:02:26.5]} 12. Bxb7 {[%clk 0:02:33]} 12...
Qxb7 {[%clk 0:02:27.4]} 13. bxc3 {[%clk 0:02:33]} 13... Nc6 {[%clk 0:02:25.6]}
14. Be3 {[%clk 0:02:31.7]} 14... Qc7 {[%clk 0:02:14.1]} 15. Rb1 {[%clk
0:02:25.8]} 15... f5 {[%clk 0:02:10.5]} 16. Qe2 {[%clk 0:02:20.6]} 16... Be7
{[%clk 0:02:04.4]} 17. Nxc6 {[%clk 0:02:18]} 17... Qxc6 {[%clk 0:02:02.1]} 18.
Bd4 {[%clk 0:02:18]} 18... Rg8 {[%clk 0:01:59.1]} 19. Rb6 {[%clk 0:02:15.9]}
19... Qc7 {[%clk 0:01:58.6]} 20. Qf3 {[%clk 0:02:00.9]} 20... d5 {[%clk
0:01:41.1]} 21. Rfb1 {[%clk 0:01:56]} 21... Rc8 {[%clk 0:01:22.9]} 22. Rb7
{[%clk 0:01:24.2]} 22... Qc4 {[%clk 0:01:16.3]} 23. Qh5 {[%clk 0:01:17.7]} 23...
Qe2 {[%clk 0:00:42.7]} 24. Qxe2 {[%clk 0:01:15.1]} 1-0

[Event "*** Titled Tuesday Blitz"]
[Site "Chess.com"]
[Date "2020.12.01"]
[Round "7"]
[White "Nachsueb"]
[Black "aa175"]
[Result "0-1"]
[WhiteElo "2191"]
[BlackElo "2340"]
[TimeControl "180+1"]
[EndTime "11:14:19 PST"]
[Termination "aa175 won by resignation"]

1. c4 {[%clk 0:03:00.9]} 1... Nf6 {[%clk 0:02:57.6]} 2. d4 {[%clk 0:03:01]} 2...
g6 {[%clk 0:02:51.7]} 3. Nc3 {[%clk 0:03:01.4]} 3... d5 {[%clk 0:02:49.7]} 4.
Nf3 {[%clk 0:02:58.9]} 4... Bg7 {[%clk 0:02:48.6]} 5. h4 {[%clk 0:02:53.8]} 5...
c6 {[%clk 0:02:44.6]} 6. h5 {[%clk 0:02:37.1]} 6... Nxh5 {[%clk 0:02:13]} 7.
Rxh5 {[%clk 0:02:36.7]} 7... gxh5 {[%clk 0:02:13.9]} 8. Bg5 {[%clk 0:02:29.4]}
8... dxc4 {[%clk 0:02:10.5]} 9. Qd2 {[%clk 0:02:22.6]} 9... Nd7 {[%clk
0:02:05.5]} 10. Bh6 {[%clk 0:02:10.2]} 10... Bxh6 {[%clk 0:01:47.4]} 11. Qxh6
{[%clk 0:02:11.1]} 11... Qb6 {[%clk 0:01:44.2]} 12. O-O-O {[%clk 0:02:03.6]}
12... c5 {[%clk 0:01:42.2]} 13. Qg7 {[%clk 0:01:43.1]} 13... Qf6 {[%clk
0:01:40.1]} 14. Qg3 {[%clk 0:01:42.6]} 14... cxd4 {[%clk 0:01:36.3]} 15. Nd5
{[%clk 0:01:42.7]} 15... Qh6+ {[%clk 0:01:32.1]} 16. Kb1 {[%clk 0:01:41]} 16...
Kf8 {[%clk 0:01:09.3]} 17. Nxd4 {[%clk 0:01:32.3]} 17... Qg6+ {[%clk 0:01:06.8]}
18. Qxg6 {[%clk 0:01:26.2]} 18... hxg6 {[%clk 0:01:07.7]} 19. e4 {[%clk
0:01:16]} 19... Nf6 {[%clk 0:01:03.2]} 20. Nxf6 {[%clk 0:00:59]} 20... exf6
{[%clk 0:01:02]} 21. Bxc4 {[%clk 0:00:58.7]} 21... h4 {[%clk 0:00:57.2]} 22. Nb5
{[%clk 0:00:57.1]} 22... Bg4 {[%clk 0:00:54.4]} 23. f3 {[%clk 0:00:56.5]} 23...
h3 {[%clk 0:00:54.9]} 24. Rd7 {[%clk 0:00:43.4]} 24... Bxd7 {[%clk 0:00:53.4]}
0-1